Cogmind - Beta 13 @@@ ROGUE MODE // 2024.06.10 @ 20:04:14 Player: Gilly Result: Destroyed by G-34 Mercenary with Small Laser Performance ------------- Evolutions (1) 500 Regions Visited (3) 600 Robots Destroyed (19) 95 Value Destroyed (431) 431 Prototype IDs (0) 0 Alien Tech Used (0) 0 Bonus (0) 0 TOTAL SCORE: 1626 Bonus ------- None Cogmind --------- Core Integrity 0/400 Matter 300/300 Energy 100/100 System Corruption 0% Temperature Cool (6) Movement Core (50) Location -9/Materials Parts ------- > --- POWER (1) -------- (None) > --- PROPULSION (4) --- (None) > --- UTILITY (2) ------ (None) > --- WEAPON (2) ------- (None) > --- INVENTORY (5) ---- (None) Peak State ------------ > --- POWER ------------ Light Deuterium Engine > --- PROPULSION ------- VTOL Module VTOL Module VTOL Module > --- UTILITY ---------- Melee Analysis Suite Reaction Control System > --- WEAPON ----------- Axe Axe > --- INVENTORY -------- Light Ion Engine Hover Unit Hover Unit Hover Unit [Rating: 21] Favorites ----------- Power Light Ion Engine Engine Light Ion Engine Propulsion VTOL Module Leg Aluminum Leg Wheel Wheel Hover Unit Hover Unit Flight Unit VTOL Module Utility Signal Interpreter Device Reaction Control System Processor Signal Interpreter Weapon Light Assault Rifle Energy Gun Small Laser Ballistic Gun Light Assault Rifle Launcher Grenade Launcher Slashing Weapon Axe Build | -11 -10 -10 -9 ------- Run | Yrd Mat Min Mat Slots Evolved 2 | . . . 2 Power . | . . . . Propulsion 2 | . . . 2 Utility . | . . . . Weapon . | . . . . Parts Attached 27 | 5 9 . 13 Power 3 | 1 1 . 1 Engine 3 | 1 1 . 1 Core . | . . . . Reactor . | . . . . Propulsion 13 | 2 3 . 8 Treads . | . . . . Leg 1 | . 1 . . Wheel 2 | 2 . . . Hover 7 | . 2 . 5 Flight 3 | . . . 3 Utility 3 | . 1 . 2 Device 1 | . . . 1 Storage . | . . . . Processor 2 | . 1 . 1 Hackware . | . . . . Protection . | . . . . Artifact . | . . . . Weapon 8 | 2 4 . 2 Energy Gun 4 | 2 2 . . Energy Cannon . | . . . . Ballistic Gun 1 | . 1 . . Ballistic Cannon . | . . . . Launcher 1 | . 1 . . Special Weapon . | . . . . Impact Weapon . | . . . . Slashing Weapon 2 | . . . 2 Piercing Weapon . | . . . . Special Melee Weapon . | . . . . Unidentified Prototypes . | . . . . Parts Lost 18 | . 6 . 12 Power 2 | . 1 . 1 Propulsion 8 | . 2 . 6 Utility 2 | . . . 2 Weapon 6 | . 3 . 3 Highest Loss Streak 11 | . 6 . 11 To Critical Strikes . | . . . . Average Slot Usage (%) 70 | . 61 85 74 Engine 11 | . 13 14 9 Leg 1 | . 3 . . Wheel 6 | . 15 . . Hover 9 | . 2 28 8 Flight 10 | . . . 22 Device 1 | . . . 4 Processor 7 | . . 14 11 Energy Gun 6 | . 16 . . Ballistic Gun 6 | . 5 14 4 Launcher 5 | . 5 14 2 Slashing Weapon 5 | . . . 11 Naked Turns 6 | . 1 . 5 Heaviest Build 12 | 5 7 7 12 Greatest Support 26 | 26 26 12 24 Greatest Overweight (x) 2 | . 2 . 1 Average Overweight (x) . | . . . . Largest Inventory Capacity 5 | 5 5 5 5 Average Capacity 5 | 5 5 5 5 Most Carried 5 | 5 4 2 5 Average Carried 2 | 2 2 2 3 Final Capacity 5 | 5 5 5 5 Final Carried 2 | 2 2 2 . Class Distribution -------------------- 68% | Mutant 28% | Sprinter Dominant Class ---------------- Mutant | -10/Materials Mutant | -10/Mines Sprinter | -9/Materials Resources | -11 -10 -10 -9 ----------- Run | Yrd Mat Min Mat Matter Collected 499 | 250 41 72 136 Remotely . | . . . . Salvage Created 471 | . 166 89 216 Parts 45 | . 19 8 18 Haulers Intercepted . | . . . . Recyclers Shooed 1 | . 1 . . Parts Field Recycled . | . . . . Retrieved Matter . | . . . . Parts Self-Destructed . | . . . . Prevented . | . . . . Kills | -11 -10 -10 -9 ------- Run | Yrd Mat Min Mat Combat Hostiles Destroyed 12 | . 6 2 4 Melee 2 | . . . 2 Guns 4 | . 3 . 1 AOE 6 | . 3 2 1 Classes Destroyed 8 | . 3 . 5 Worker 3 | . 2 1 . Builder 1 | . . . 1 Operator 1 | . . . 1 Watcher 2 | . . . 2 Swarmer 5 | . 5 . . Grunt 5 | . 1 2 2 Duelist 1 | . . . 1 Sentry 1 | . . . 1 Best Kill Streak 5 | . 5 2 4 Combat Bots Only 3 | . 3 2 1 Max Kills in Single Turn 2 | . 2 2 2 Gunslinging 1 | . 1 . . Exploded 2 | . 2 2 1 Melee 1 | . . . 1 Uniques/NPCs Destroyed . | . . . . Combat | -11 -10 -10 -9 -------- Run | Yrd Mat Min Mat Hostile Shots Fired 167 | . 55 . 112 Missed 43 | . 9 . 34 Damage Taken 1352 | . 465 24 863 Core 549 | . 143 6 400 Absorbed by Shields . | . . . . Core Remaining (%) 70 | 100 . 40 . Volleys Fired 43 | . 23 1 19 Largest 2 | . 2 2 2 Hottest 80 | . 80 50 50 Shots Fired 56 | . 31 2 23 Gun 49 | . 29 1 19 Cannon . | . . . . Launcher 7 | . 2 1 4 Special . | . . . . Kinetic 22 | . 2 1 19 Thermal 21 | . 21 . . Explosive 7 | . 2 1 4 Electromagnetic 6 | . 6 . . Robot Hit Streak 3 | . 3 2 3 Robot Miss Streak 3 | . 3 . 2 Penetration Max . | . . . . Secondary Targets 1 | . 1 . . Max Gunslinging Chain 1 | . 1 . . Shots Hit Robots 44 | . 16 2 26 Core Hits 25 | . 12 3 10 Critical Kills . | . . . . Critical Parts Destroyed . | . . . . Critical Strikes . | . . . . Melee Attacks 24 | . . . 24 Impact . | . . . . Slashing 24 | . . . 24 Piercing . | . . . . Sneak Attacks . | . . . . Combat Hostiles . | . . . . Follow-up Attacks 1 | . . . 1 Damage Inflicted 1156 | . 369 104 683 Guns 318 | . 217 10 91 Cannons . | . . . . Explosions 374 | . 149 82 143 Melee 449 | . . . 449 Ramming 15 | . 3 12 . Kinetic 111 | . 10 10 91 Thermal 231 | . 231 . . Explosive 307 | . 82 82 143 Electromagnetic 43 | . 43 . . Impact . | . . . . Slashing 449 | . . . 449 Piercing . | . . . . Highest Corruption . | . . . . Average Corruption . | . . . . Corruption Purged . | . . . . Corruption Blocked . | . . . . Overload Shots . | . . . . Overflow Damage 70 | . 14 . 56 Projectiles . | . . . . Explosions 20 | . 14 . 6 Melee 50 | . . . 50 Knockbacks . | . . . . Impact . | . . . . Kinetic . | . . . . Secondary . | . . . . Self-Inflicted Damage 114 | . 59 26 29 Shots 5 | . 2 1 2 Rammed 2 | . 1 1 . Targets Rammed 2 | . 1 1 . Kicked . | . . . . Crushed . | . . . . Highest Temperature 72 | . 72 14 22 Average Temperature 29 | . 35 10 10 Received Heat Transfer 348 | . 84 . 264 Siege Activations . | . . . . Robots Corrupted . | . . . . Combat Hostiles . | . . . . Parts Fried . | . . . . Impact Corruptions . | . . . . Robots Melted . | . . . . Combat Hostiles . | . . . . Parts Melted . | . . . . Heat Transferred 525 | . 525 . . Parts Sabotaged . | . . . . Parts Stolen . | . . . . Parts Stripped . | . . . . Power Chain Reactions 1 | . 1 . . Alert | -11 -10 -10 -9 ------- Run | Yrd Mat Min Mat Peak Influence 337 | . 184 138 337 Initial 71 | . . 71 53 Average 141 | . 82 135 218 Maximum Alert Level 1 | . . . 1 Low Security (%) 76 | 100 100 100 41 Level 1 23 | . . . 58 Level 2 . | . . . . Level 3 . | . . . . Level 4 . | . . . . Level 5 . | . . . . High Security . | . . . . Max Security . | . . . . Squads Dispatched 3 | . 1 . 2 Investigation 2 | . . . 2 Extermination . | . . . . Reinforcement 1 | . 1 . . Assault . | . . . . Garrison . | . . . . Intercept . | . . . . Searches Triggered . | . . . . Construction Impeded . | . . . . Haulers Reinforced . | . . . . Active Scanning Responses . | . . . . Cargo Convoy Interrupts . | . . . . Stealth | -11 -10 -10 -9 --------- Run | Yrd Mat Min Mat Distress Signals 1 | . 1 . . Communications Jammed . | . . . . Distress Signals . | . . . . Times Spotted 28 | . 13 . 15 Peak Tracking Total 6 | . 6 . 5 Tactical Retreats 3 | . 2 . 1 Traps | -11 -10 -10 -9 ------- Run | Yrd Mat Min Mat Traps Triggered 1 | . . . 1 Indirectly . | . . . . Trap Hack Attempts . | . . . . Triggered . | . . . . Disarmed . | . . . . Reprogrammed . | . . . . Reused . | . . . . Traps Extracted . | . . . . Installed . | . . . . Triggered . | . . . . Machines | -11 -10 -10 -9 ---------- Run | Yrd Mat Min Mat Machines Disabled 6 | . 2 . 4 Max in Single Turn 3 | . 1 . 3 Machines Repaired . | . . . . Machines Dismantled . | . . . . Machines Sabotaged . | . . . . Overloaded Fab Kills . | . . . . Hacking | -11 -10 -10 -9 --------- Run | Yrd Mat Min Mat Machines Accessed 6 | . 4 . 2 Terminals 4 | . 4 . . Fabricators . | . . . . Repair Stations . | . . . . Recycling Units 1 | . . . 1 Scanalyzers 1 | . . . 1 Garrison Access . | . . . . Total Hacks 16 | . 9 . 7 Successful 8 | . 2 . 6 Failed 8 | . 7 . 1 Catastrophic . | . . . . Database Lockouts . | . . . . Manual 1 | . 1 . . Terminals 9 | . 9 . . Fabricators . | . . . . Repair Stations . | . . . . Recycling Units 4 | . . . 4 Scanalyzers 3 | . . . 3 Garrison Access . | . . . . Terminal Hacks 2 | . 2 . . Locate Traps 1 | . 1 . . Zone Layout 1 | . 1 . . Fabricator Hacks . | . . . . Repair Station Hacks . | . . . . Recycling Unit Hacks 4 | . . . 4 Recycle Component 1 | . . . 1 Report Inventory 1 | . . . 1 Retrieve Matter 1 | . . . 1 Retrieve Components 1 | . . . 1 Scanalyzer 2 | . . . 2 Insert Component 1 | . . . 1 Analyze 1 | . . . 1 Garrison Access Hacks . | . . . . Unauthorized Hacks . | . . . . Terminals . | . . . . Fabricators . | . . . . Repair Stations . | . . . . Recycling Units . | . . . . Scanalyzers . | . . . . Garrison Access . | . . . . Data Cores Recovered 1 | . . . 1 Used . | . . . . Hacking Detections 5 | . 3 . 2 Full Trace Events 2 | . 1 . 1 Feedback Events . | . . . . Feedback Blocked . | . . . . Robot Schematics Acquired . | . . . . Robots Built . | . . . . Authchips . | . . . . Time . | . . . . Total Robot Build Rating . | . . . . Part Schematics Acquired 1 | . . . 1 Parts Built . | . . . . Authchips . | . . . . Time . | . . . . Total Part Build Rating . | . . . . Parts Repaired . | . . . . Time . | . . . . Parts Recycled 1 | . . . 1 Recycled Matter . | . . . . Retrieved Matter . | . . . . Retrieved Components . | . . . . Parts Scanalyzed 1 | . . . 1 Part Schematics Acquired 1 | . . . 1 Parts Damaged . | . . . . Bothacking | -11 -10 -10 -9 ------------ Run | Yrd Mat Min Mat Used RIF Installer . | . . . . Robots Hacked . | . . . . Non-combat . | . . . . Combat . | . . . . Robot Hacks Applied . | . . . . Relay Couplers Released . | . . . . Fabnet Peak Effective % . | . . . . Robots Rewired . | . . . . Allies Hacked . | . . . . Hacks Repelled . | . . . . Allies | -11 -10 -10 -9 -------- Run | Yrd Mat Min Mat Total Allies . | . . . . Largest Group . | . . . . Highest-Rated Group . | . . . . Highest-Rated Ally . | . . . . Total Orders . | . . . . Ally Attacks . | . . . . Total Damage . | . . . . Kills . | . . . . Allies Corrupted . | . . . . Allies Melted . | . . . . Intel | -11 -10 -10 -9 ------- Run | Yrd Mat Min Mat Robot Analysis Total . | . . . . Derelict Logs Recovered . | . . . . Drone Launches . | . . . . Drone Recoveries . | . . . . Exploration | -11 -10 -10 -9 ------------- Run | Yrd Mat Min Mat Turns Passed 740 | 44 276 117 303 Spaces Moved 984 | 46 215 202 521 Core 36 | 22 7 . 7 Treads . | . . . . Legs 51 | . 51 . . Wheels 164 | 24 140 . . Hover 304 | . 17 202 85 Flight 429 | . . . 429 Fastest Speed 29 | 50 50 56 29 Average Speed 53 | 70 94 56 33 Slowest Speed 150 | 90 150 56 115 Overloaded Moves . | . . . . Propulsion Burnouts . | . . . . Robots Hopped . | . . . . Cave-ins Triggered . | . . . . Exploration Rate (%) 33 | 4 37 63 30 Regions Visited 3 Branch Regions 1 Pre-discovered Areas . | . . . . Known Exits Taken 2 | . 1 1 . Unknown Exits Taken 1 | 1 . . . Scrap Searched 2 | . . 2 . Spaces Dug . | . . . . Terrain Destroyed 69 | . 14 12 43 Melee . | . . . . Projectile . | . . . . AOE 69 | . 14 12 43 Terrain Rammed . | . . . . Walls Destroyed . | . . . . Machines Disabled . | . . . . Actions | -11 -10 -10 -9 --------- Run | Yrd Mat Min Mat Total 1112 | 56 257 203 596 Wait 11 | . . . 11 Move 981 | 45 214 201 521 Hop . | . . . . Pick Up 22 | 6 8 . 8 Fast Attach 2 | 1 . . 1 Attach 20 | 4 8 . 8 Detach 2 | . 1 . 1 Swap 5 | . 1 . 4 Drop 5 | . 1 . 4 Fire 43 | . 23 1 19 Melee 19 | . . . 19 Ram 2 | . 1 1 . Kick . | . . . . Crush . | . . . . Escape Stasis . | . . . . Rewire . | . . . . Trap . | . . . . Miscellaneous . | . . . . Route ------- -11/Scrapyard -10/Materials -10/Mines -9/Materials History --------- Turn | Location | Event 5 | -11/Scrapyard | Discovered new exit (range 16) 45 | -11/Scrapyard | Entered Materials 231 | -10/Materials | Core integrity fell below 50% 256 | -10/Materials | Discovered new exit (range 13) 257 | -10/Materials | Lost 6 parts (1p2n3w) 321 | -10/Materials | Identified exit to Mines 321 | -10/Materials | Entered Mines 326 | -10/Mines | Met a Derelict bent on vengeance 331 | -10/Mines | Build established: Mutant 432 | -10/Mines | Discovered new exit (range 11) 437 | -10/Mines | Identified exit to Materials 438 | -10/Mines | Entered Materials 438 | -9/Materials | Evolved 2 slots: Propulsion x2 717 | -9/Materials | Core integrity fell below 50% 736 | -9/Materials | Core integrity fell below 20% 741 | -9/Materials | Destroyed by G-34 Mercenary with Small Laser Last Messages --------------- K-01 Serf collects debris. Reaction Control System destroyed. VTOL Module destroyed. Lgt. Deuterium Engine destroyed. G-34 Mercenary destroyed. VTOL Module destroyed. Destroyed Lgt. Ion Engine. Destroyed Flight Unit. M-13 Machinist repairs Aluminum Leg. S-10 Pest destroyed. Axe destroyed. Hover Unit destroyed. Axe destroyed. M-13 Machinist fits Backup Power I on S-10 Pest. Hover Unit destroyed. M-13 Machinist fits Backup Propulsion I on S-10 Pest. Hover Unit destroyed. Melee Analysis Suite destroyed. M-13 Machinist repairs Sml. Laser. Map ----- +----------------------------------------------------+ | ????????????????# # #"" # | | ????????????????# # + # | | ????????????????# # # # | | ????????????????# # # # | | ????????????????# # ####### | | ????????????????# # #?????? | | ????????????????####+###+###### #?????? | | ??????????????????# #???##+##+##????? | | ??????????????????# ##+##### #????? | | ??????????????????# ## ## #????? | | ?????????#####????# ## ## ""#????? | | ?????????#"""#????# ## ## ! T"#????? | | ???????###"Y"###### ## ## ""#????? | | ???????#[ ## ## ## #????? | | ???????# # [ ##########+####???? | | ???????# """ """ # =% #???? | | ???????# """ """ + = #???? | | ???????# """ """ # #???? | | ???????# """ """ # ###/###########???? | | ???????# """ """ ## ## ssgg #????????? | | ???????# ## ## * #????????? | | ???????############ ## #????????? | | ??????????????#** ## ! #????????? | | ??????????????# * ## #????????? | | ??????????????# ## #????????? | | ??????????????#// ## @ #????????? | | ??????????????# ! ## #????????? | | ??????????????#!! ## #????????? | | ??????????????##### ###########????????? | | ??????????????????# #??????????????????? | | ??????????????????# #??????????????????? | | ??????????????????# #??????????????????? | | ??????????????????# #??????????????????? | | ??????????????????# #??????????????????? | | ??????????????????# #??????????????????? | | ??????????????????# #??????????????????? | | ??????????????????# #??????????????????? | | ??????????????????# #??????????????????? | | ??????????????????# #??????????????????? | | ??????????????????# #??????????????????? | | ??????????????????# #??????????????????? | | ??????????????????# #??????????????????? | | ??????????????????# #??????????????????? | | ??????????##??????# #??????????????????? | | ??????????#= ?????# #??????????????????? | | ??????????# ????# #??????????????????? | | ??????????? ????# #??????????????????? | | ???????????? ???# #??????????????????? | | ?????????????T" ??# #??????????????????? | | ?????????????? ?# #??????????????????? | +----------------------------------------------------+ Best States ------------- Heat Dissipation 28 Energy Generation 14 Energy Capacity 140 Matter Stores 300 Matter Capacity 300 Sight Range 16 Terrain Scan Density 10 Evasion (%) 72 Melee Accuracy 5 Item Schematics ----------------- Lgt. Ion Engine | -9/Materials | Scanalyzed Robot Schematics ------------------ None Fabricated ------------ Nothing Alien Tech Used ----------------- None Achievements -------------- Deadly Force Challenges ------------ None Game ------ Seed HypercooledBiometalShotgun Manual? 0 Play Time 00:16:34 Cumulative 4.7 hours Start 2024.06.10 @ 18:46:50 End 2024.06.10 @ 20:04:14 Sessions 3 Manual Loads 0 Difficulty Rogue Special Mode None Game No. 11 Rogue 11 Adventurer 0 Explorer 0 Win Type - Total 0 Types 0/0/0/0/0/0/0/0/0 Lore% 2 Gallery% 12 Achievement% 9 Wizard Run 0 Options --------- Layout 1 ASCII 0 Keyboard 0 Movement Mouse Keybinds 0 Fullscreen 1 Font 32/SmallcapsGlow Map View 50x35 Zoom Use 0% Tactical HUD 0 Map Filters NONE Filters NONE Steam 1 RUN: 5aabd800-ac58-4cce-b5ec-2f529b9af9d6